lending/lending_fUSD_20250303
["ID","MTS","AMOUNT","RATE_DAILY","PERIOD"]
[355211454,1741014638913,-7861.52454815,0.00014793,2]
[355211456,1741014638927,-9080.465334,0.00014793,2]
[355211459,1741014638940,-5954.55808743,0.00014793,2]
[355211461,1741014638953,-811.11628546,0.00014793,2]
[355211463,1741014638966,-7456.88278745,0.00014793,2]
[355211465,1741014638983,-13538.99947917,0.00014793,2]
[355211467,1741014638996,-958.0,0.00014793,2]
[355211469,1741014639009,-18014.60016,0.00014793,2]
[355211471,1741014639022,-5222.0,0.00014793,2]
[355211473,1741014639034,-18096.8,0.00014793,2]
[355211516,1741014641357,-850.16,0.00014791,2]
[355211517,1741014641367,-500.0,0.00014792,2]
[355211518,1741014641382,-449.97687773,0.00014792,2]
[355211519,1741014641394,-315.94,0.00014792,2]
[355211520,1741014641462,-916.39312227,0.00014792,2]
[355211521,1741014641472,-500.0,0.00014792,2]
[355211522,1741014641481,-241.26078092,0.00014792,2]
[355211523,1741014641502,-258.73921908,0.00014792,2]
[355211524,1741014641511,-15741.26077972,0.00014793,2]
[355211525,1741014641614,-62425.02309055,0.00014793,2]
[355211526,1741014641631,-81832.18101256,0.00014793,2]
[355211527,1741014641641,-960951.62447896,0.00014793,2]
[355211528,1741014641782,-4501.05538509,0.00014793,2]
[355211529,1741014641796,-281.58509351,0.00014793,2]
[355211584,1741014643451,-579.28131652,0.00014692,2]
[355211585,1741014643463,-6735.85383941,0.00014692,2]
[355211586,1741014643474,-24174.47964407,0.00014692,2]
[355211587,1741014643483,-3018.91,0.00014791,2]
[355211588,1741014643493,-697.68,0.00014791,2]
[355211589,1741014643502,-500.0,0.00014792,2]
[355211590,1741014643511,-16685.04812894,0.00014793,2]
[355211591,1741014643522,-2097.86412202,0.00014793,2]
[355211592,1741014643534,-2716.41,0.00014793,2]
[355211593,1741014643546,-450.52769059,0.00014793,2]
[355211594,1741014643557,-370.80323427,0.00014793,2]
[355211595,1741014643568,-302.2027,0.00014793,2]
[355211605,1741014644137,-1698.01417811,0.00014793,2]
[355211606,1741014644149,-253994.34287693,0.00014793,2]
[355211607,1741014644162,-463.64600001,0.00014793,2]
[355211608,1741014644176,-2051.25408323,0.00014793,2]
[355211609,1741014644196,-636.11588666,0.00014793,2]
[355211611,1741014644209,-1032.6046,0.00014793,2]
[355211612,1741014644221,-146614.37410624,0.00014793,2]
[355211613,1741014644232,-13493.96371475,0.00014793,2]
[355211614,1741014644244,-361.67900002,0.00014793,2]
[355211615,1741014644256,-452888.71708463,0.00014793,2]
[355211616,1741014644268,-950.7392472,0.00014793,2]
[355211617,1741014644279,-450.45,0.00014793,2]
[355211618,1741014644290,-3996.99999943,0.00014793,2]
[355211619,1741014644319,-39419.32826765,0.00014793,2]
[355211620,1741014644334,-3918.15874295,0.00014793,2]
[355211621,1741014644346,-1791.79,0.00014793,2]
[355211622,1741014644407,-5712.20888,0.00014793,2]
[355211623,1741014644418,-10469.898,0.00014793,2]
[355211624,1741014644438,-3909.51835721,0.00014793,2]
[355211625,1741014644455,-2547.53,0.00014793,2]
[355211654,1741014645802,-9003.8518,0.00014793,2]
[355211656,1741014645813,-576.90806922,0.00014793,2]
[355211658,1741014645825,-360.67267086,0.00014793,2]
[355211660,1741014645836,-1463.36369442,0.00014793,2]
[355211663,1741014645848,-636.73338046,0.00014793,2]
[355211666,1741014645867,-2896.0,0.00014793,2]
[355211668,1741014645884,-10823.86335173,0.00014793,2]
[355211730,1741014646628,-5000.0,0.00014693,2]
[355211731,1741014646639,-46794.9999955,0.00014793,2]
[355211732,1741014647112,-17541.2837004,0.00014793,2]
[355211733,1741014647507,-1290.999985,0.00014793,2]
[355211734,1741014647519,-354.68181823,0.00014793,2]
[355211851,1741014650411,-2184.18199992,0.00014793,2]
[355211852,1741014651071,-1127.72466607,0.00014793,2]
[355211853,1741014674540,2000.0,0.00013806,2]
[355211854,1741014695379,-524.0,0.00014692,2]
[355211855,1741014722662,-283.87149583,0.00014692,2]
[355211856,1741014733577,-16.12850417,0.00014692,2]
[355211857,1741014733604,-150.0,0.00014692,2]
[355211858,1741014733632,-2242.3288,0.00014692,2]
[355211859,1741014733658,-629.6517,0.00014692,2]
[355211860,1741014733685,-11711.9887,0.00014692,2]
[355211861,1741014733720,-2500.0,0.00014692,2]
[355211862,1741014733747,-550.0,0.00014693,2]
[355211863,1741014733773,-27382.02921497,0.00014693,2]
[355211864,1741014733800,-626.05514608,0.00014693,2]
[355211865,1741014733827,-1889.91292659,0.00014693,2]
[355211866,1741014733857,-150.0,0.00014728,2]
[355211867,1741014733886,-150.0,0.00014728,2]
[355211868,1741014733915,-150.0,0.00014738,2]
[355211869,1741014733945,-150.0,0.0001474,2]
[355211870,1741014733977,-150.0,0.00014741,2]
[355211871,1741014734006,-150.0,0.00014744,2]
[355211872,1741014734037,-150.0,0.00014744,2]
[355211873,1741014734068,-185.03631196,0.00014748,2]
[355211874,1741014734098,-150.0,0.00014754,2]
[355211875,1741014734131,-150.0,0.00014761,2]
[355211876,1741014734161,-150.0,0.00014765,2]
[355211877,1741014734188,-693.28488955,0.00014766,2]
[355211878,1741014734221,-87077.0,0.00014767,2]
[355211879,1741014734249,-164.14797983,0.00014773,2]
[355211880,1741014734277,-481.63,0.00014781,3]
[355211881,1741014734481,-150.0,0.00014786,2]
[355211882,1741014734507,-500.0,0.00014791,2]
[355211883,1741014734534,-500.0,0.00014791,2]
[355211884,1741014734559,-500.0,0.00014791,2]
[355211885,1741014734585,-1692.76,0.00014791,2]
[355211886,1741014734610,-966.75,0.00014791,2]
[355211887,1741014734636,-1044.27,0.00014791,2]
[355211888,1741014734663,-997.43,0.00014791,2]
[355211889,1741014734689,-725.75,0.00014791,2]
[355211890,1741014734721,-11655.13,0.00014791,2]
[355211891,1741014734747,-2023.8,0.00014791,2]
[355211892,1741014734775,-1082.95,0.00014791,2]
[355211893,1741014734800,-500.0,0.00014791,2]
[355211894,1741014734840,-392.51554355,0.00014791,2]
[355211895,1741014734871,-1810.51,0.00014791,2]
[355211896,1741014734899,-553.59,0.00014791,2]
[355211897,1741014734926,-500.0,0.00014791,2]
[355211898,1741014734954,-356.84484089,0.00014791,2]
[355211899,1741014734984,-500.0,0.00014791,2]
[355211900,1741014735013,-517.58,0.00014791,2]
[355211901,1741014735042,-2911.94,0.00014791,2]
[355211902,1741014735071,-500.0,0.00014791,2]
[355211903,1741014735101,-2432.44,0.00014791,2]
[355211904,1741014735130,-507.56,0.00014791,2]
[355211905,1741014735157,-645.67,0.00014791,2]
[355211906,1741014735185,-560.15,0.00014791,2]
[355211907,1741014735218,-500.0,0.00014791,2]
[355211908,1741014735247,-7403.31,0.00014791,2]
[355211909,1741014735278,-1187.33,0.00014791,2]
[355211910,1741014735307,-4222.04,0.00014791,2]
[355211911,1741014735335,-1633.36,0.00014791,2]
[355211912,1741014735360,-500.0,0.00014792,2]
[355211913,1741014735387,-500.0,0.00014792,2]
[355211914,1741014735421,-500.0,0.00014792,2]
[355211915,1741014735450,-151.346348,0.00014792,2]
[355211916,1741014735482,-1722.66,0.00014792,2]
[355211917,1741014735509,-300.0,0.00014792,2]
[355211918,1741014735536,-500.0,0.00014792,2]
[355211919,1741014735564,-500.0,0.00014792,2]
[355211920,1741014735592,-500.0,0.00014792,2]
[355211921,1741014735620,-598.22,0.00014792,2]
[355211922,1741014735649,-335.03903378,0.00014792,2]
[355211923,1741014735677,-500.0,0.00014792,2]
[355211924,1741014735705,-500.0,0.00014792,2]
[355211925,1741014735736,-500.0,0.00014792,2]
[355211926,1741014735763,-510.30530109,0.00014792,2]
[355211927,1741014735792,-1677.25,0.00014792,2]
[355211928,1741014735819,-500.0,0.00014792,2]
[355211929,1741014735847,-1429.76,0.00014792,2]
[355211930,1741014735874,-500.0,0.00014792,2]
[355211931,1741014735902,-1452.34,0.00014792,2]
[355211932,1741014735928,-500.0,0.00014792,2]
[355211933,1741014735956,-842.11,0.00014792,2]
[355211934,1741014735985,-500.0,0.00014792,2]
[355211935,1741014736016,-500.0,0.00014792,2]
[355211936,1741014736045,-500.0,0.00014792,2]
[355211937,1741014736075,-511.83542949,0.00014792,2]
[355211938,1741014736103,-500.0,0.00014792,2]
[355211939,1741014736131,-500.0,0.00014792,2]
[355211940,1741014736159,-611.09,0.00014792,2]
[355211941,1741014736353,-500.0,0.00014792,2]
[355211942,1741014736379,-500.0,0.00014792,2]
[355211943,1741014736404,-504.79161225,0.00014792,2]
[355211944,1741014736431,-500.0,0.00014792,2]
[355211945,1741014736458,-2362.59,0.00014792,2]
[355211946,1741014736487,-500.0,0.00014792,2]
[355211947,1741014736519,-500.0,0.00014792,2]
[355211948,1741014736547,-500.0,0.00014792,2]
[355211949,1741014736573,-571.42,0.00014792,2]
[355211950,1741014736599,-500.0,0.00014792,2]
[355211951,1741014736625,-793.39,0.00014792,2]
[355211952,1741014736651,-500.0,0.00014792,2]
[355211953,1741014736678,-500.0,0.00014792,2]
[355211954,1741014736704,-500.0,0.00014792,2]
[355211955,1741014736731,-873.85,0.00014792,2]
[355211956,1741014736760,-28962.1277178,0.00014792,2]
[355211957,1741014743893,462.72428093,8.972e-05,2]
[355211958,1741014743960,494.20444379,8.972e-05,2]
[355211959,1741014743992,1143.07127528,8.972e-05,2]
[355211960,1741014744612,900.0,8.22e-05,2]
[355211961,1741014745493,2100.0,0.00010342,2]
[355211962,1741014746291,900.0,9.59e-05,2]
[355211963,1741014747093,2100.0,0.00011712,2]
[355211964,1741014747881,900.0,0.0001096,2]
[355211965,1741014749893,900.0,0.0001233,2]
[355211966,1741014752217,2100.0,0.00013082,2]
[355211967,1741014753093,800.0,8.972e-05,2]
[355211968,1741014754732,800.0,0.00010342,2]
[355211969,1741014756314,800.0,0.00011712,2]
[355211970,1741014758215,800.0,0.00013082,2]
[355211971,1741014759535,800.0,0.00014452,2]
[355211972,1741014858187,163.77,0.00013911,2]
[355211973,1741014921203,20527.11996304,0.00014,2]
[355211974,1741014952490,150.0,0.00013784,7]
[355211975,1741015019796,2000.0,0.00013778,2]
[355211976,1741015072408,153.71,0.00013758,2]
[355211977,1741015112773,-150.0,0.00014691,5]
[355211978,1741015115589,-150.0,0.00014691,5]
[355211979,1741015117545,-150.0,0.00014691,5]
[355211980,1741015137425,500.0,0.00014792,120]
[355211981,1741015137593,500.0,0.00015066,120]
[355211982,1741015152542,-50.0,0.00014691,5]
[355211983,1741015180645,250.0,0.00013748,2]
[355211984,1741015313156,23900.0,0.00013741,2]
[355211986,1741015365443,1000.0,0.00013768,2]
[355211987,1741015434654,2751.0,0.0001376,2]
[355211988,1741015460228,451.02,0.00013742,2]
[355211989,1741015527002,1377.48,0.00013726,2]
[355211990,1741015554080,1325.32,0.00013726,2]
[355211992,1741015580049,371.6,0.00013727,2]
[355211993,1741015580279,371.6,0.00013807,2]
[355211994,1741015580721,371.6,0.00013886,2]
[355211995,1741015580951,371.6,0.00013966,2]
[355211996,1741015581152,371.6,0.00014045,2]
[355211997,1741015581390,371.6,0.00014125,2]
[355211998,1741015581657,371.6,0.00014204,2]
[355211999,1741015581807,371.6,0.00014284,2]
[355212000,1741015582038,371.6,0.00014363,2]
[355212001,1741015582259,371.6,0.00014443,2]
[355212003,1741015636055,298.0,0.000145,2]
[355212011,1741015711486,1185.83,0.00011804,2]
[355212012,1741015711703,1185.83,0.00014068,2]
[355212019,1741015728440,-371.6,0.00014522,2]
[355212020,1741015728533,-567.98528963,0.000146,2]
[355212021,1741015728691,-432.01471037,0.000146,2]
[355212022,1741015728780,-371.6,0.00014602,2]
[355212023,1741015728861,-135.97057926,0.0001465,2]
[355212024,1741015728975,-629.39260074,0.0001465,2]
[355212025,1741015729054,-310.19268889,0.0001465,2]
[355212026,1741015729254,-455.17048111,0.0001465,2]
[355212027,1741015729358,-300.0,0.00014669,2]
[355212028,1741015729445,-150.0,0.0001467,2]
[355212029,1741015729528,-34.41480852,0.0001468,2]
[355212030,1741015729617,-730.94836148,0.0001468,2]
[355212031,1741015729699,-208.63692815,0.00014681,2]
[355212032,1741015730048,-162.96307185,0.00014681,2]
[355212037,1741015753542,-1036.80308003,0.0001469,2]
[355212038,1741015753645,-1036.80308003,0.0001469,2]
[355212039,1741015753779,-136.40252278,0.0001469,2]
[355212040,1741015753865,-900.40055725,0.0001469,2]
[355212041,1741015753974,-1036.80308003,0.0001469,2]
[355212042,1741015754096,-272.8050455,0.0001469,2]
[355212043,1741015754177,-763.99803453,0.00014691,2]
[355212044,1741015754280,-1036.80308003,0.00014691,2]
[355212045,1741015754608,-409.20756822,0.00014691,2]
[355212046,1741015754670,-500.0,0.00014691,2]
[355212047,1741015754726,-127.59551181,0.00014691,2]
[355212048,1741015754790,-1031.86548819,0.00014691,2]
[355212049,1741015754843,-4.93759184,0.00014691,2]
[355212050,1741015754905,-1036.80308003,0.00014691,2]
[355212051,1741015754982,-1036.80308003,0.00014691,2]
[355212056,1741015778555,-1244.16369603,0.00014691,2]
[355212057,1741015778682,-1244.16369603,0.00014691,2]
[355212058,1741015778784,-1244.16369603,0.00014691,2]
[355212059,1741015778876,-1244.16369603,0.00014691,2]
[355212060,1741015778972,-557.86544229,0.00014691,2]
[355212061,1741015779072,-1244.16369603,0.00014691,2]
[355212062,1741015779199,-1244.16369603,0.00014691,2]
[355212063,1741015779850,-1244.16369603,0.00014691,2]
[355212064,1741015779916,-1244.16369603,0.00014691,2]
[355212065,1741015779981,-1244.16369603,0.00014691,2]
[355212066,1741015780048,-1241.11265284,0.00014691,2]
[355212067,1741015780101,-3.05104319,0.00014691,4]
[355212068,1741015782930,-1244.16369603,0.0001469,2]
[355212072,1741015803496,-300.0,0.0001469,2]
[355212073,1741015803562,-150.0,0.0001469,2]
[355212074,1741015803807,-1079.03701801,0.0001469,2]
[355212075,1741015803881,-1480.32358596,0.0001469,2]
[355212076,1741015803950,-48.71343205,0.00014691,4]
[355212077,1741015804025,-377.95552476,0.00014691,4]
[355212078,1741015804087,-500.0,0.00014691,3]
[355212079,1741015804156,-651.08149325,0.00014691,2]
[355212080,1741015804259,-1529.03701801,0.00014691,2]
[355212081,1741015804342,-29.89017152,0.00014691,2]
[355212082,1741015804414,-191.05616847,0.00014691,2]
[355212083,1741015804488,-150.0,0.00014691,2]
[355212084,1741015804561,-1158.09067802,0.00014691,2]
[355212085,1741015804644,-1051.91800476,0.00014691,2]
[355212086,1741015804721,-477.11901325,0.00014692,2]
[355212087,1741015804845,-1529.03701801,0.00014692,2]
[355212088,1741015805020,-203.85265152,0.00014692,2]
[355212089,1741015805084,-1325.18436649,0.00014692,2]
[355212090,1741015805178,-884.82431629,0.00014692,2]
[355212091,1741015805241,-209.94298294,0.00014692,2]
[355212092,1741015806848,250.0,0.00013,2]
[355212111,1741015832286,-1153.4022005,0.00014692,2]
[355212112,1741015832479,-1159.89326232,0.00014692,2]
[355212113,1741015832490,-7557.28095424,0.00014692,2]
[355212114,1741015832501,-5000.0,0.00014692,2]
[355212115,1741015832510,-2210.00868278,0.00014692,2]
[355212116,1741015832520,-2210.00868278,0.00014693,2]
[355212117,1741015832530,-975.4475,0.00014693,2]
[355212118,1741015832541,-1614.96948348,0.00014693,2]
[355212119,1741015832554,-1614.96948348,0.00014693,2]
[355212120,1741015832565,-2210.00868278,0.00014693,2]
[355212121,1741015832575,-340.8127485,0.00014693,2]
[355212122,1741015832586,-1883.88025617,0.000147,2]
[355212123,1741015832597,-765.36318,0.0001472,2]
[355212124,1741015832607,-150.0,0.0001473,2]
[355212125,1741015832617,-150.0,0.00014734,2]
[355212126,1741015832627,-150.0,0.00014736,2]
[355212127,1741015832638,-150.0,0.00014743,2]
[355212128,1741015832647,-150.0,0.00014744,2]
[355212129,1741015832657,-150.0,0.00014754,2]
[355212130,1741015832667,-150.0,0.00014756,2]
[355212131,1741015832676,-150.0,0.0001476,2]
[355212132,1741015832686,-371.6,0.00014761,2]
[355212133,1741015832696,-150.0,0.00014763,2]
[355212134,1741015832711,-150.0,0.00014768,2]
[355212135,1741015832721,-165.3951215,0.00014773,2]
[355212136,1741015832731,-500.0,0.00014773,2]
[355212137,1741015832741,-150.0,0.00014775,2]
[355212138,1741015832750,-150.0,0.00014778,2]
[355212139,1741015832760,-1137.86,0.00014789,2]
[355212140,1741015832771,-1102.06,0.00014789,2]
[355212141,1741015832782,-958.39,0.00014789,2]
[355212142,1741015832793,-1418.93,0.00014789,2]
[355212143,1741015832803,-1809.47,0.00014789,2]
[355212144,1741015832813,-1413.29,0.00014789,2]
[355212145,1741015832823,-500.0,0.00014789,2]
[355212146,1741015832833,-2099.09,0.00014789,2]
[355212148,1741015832843,-500.0,0.00014789,2]
[355212150,1741015832853,-1757.82,0.00014789,2]
[355212153,1741015832864,-500.0,0.00014789,2]
[355212154,1741015832876,-856.38,0.00014789,2]
[355212157,1741015832886,-2747.15,0.00014789,2]
[355212159,1741015832896,-500.0,0.00014789,2]
[355212160,1741015832906,-500.0,0.00014789,2]
[355212162,1741015832915,-1406.12,0.00014789,2]
[355212164,1741015832925,-1340.61,0.00014789,2]
[355212166,1741015832935,-986.45,0.00014789,2]
[355212167,1741015832945,-831.77,0.00014789,2]
[355212168,1741015832960,-7232.41,0.00014789,2]
[355212171,1741015832970,-500.0,0.00014789,2]
[355212173,1741015832980,-500.0,0.00014789,2]
[355212175,1741015832989,-1334.7,0.00014789,2]
[355212177,1741015832999,-500.0,0.00014789,2]
[355212180,1741015833009,-156.07818175,0.00014789,2]
[355212182,1741015833019,-500.0,0.00014789,2]
[355212184,1741015833029,-500.0,0.00014789,2]
[355212185,1741015833039,-500.0,0.00014789,2]
[355212187,1741015833049,-2934.79,0.00014789,2]
[355212189,1741015833059,-1111.83,0.00014789,2]
[355212191,1741015833069,-500.0,0.00014789,2]
[355212193,1741015833079,-1168.38,0.00014789,2]
[355212195,1741015833090,-500.0,0.00014789,2]
[355212197,1741015833100,-500.0,0.00014789,2]
[355212199,1741015833110,-500.0,0.00014789,2]
[355212201,1741015833120,-500.74524958,0.00014789,2]
[355212203,1741015833130,-562.88,0.00014789,2]
[355212205,1741015833140,-500.0,0.00014789,2]
[355212207,1741015833150,-500.0,0.0001479,2]
[355212209,1741015833160,-1161.8,0.0001479,2]
[355212211,1741015833171,-967.07,0.0001479,2]
[355212213,1741015833181,-500.0,0.0001479,2]
[355212214,1741015833192,-576.14,0.0001479,2]
[355212215,1741015833205,-668.61,0.0001479,2]
[355212216,1741015833215,-500.0,0.0001479,2]
[355212217,1741015833226,-558.0468756,0.0001479,2]
[355212218,1741015833238,-500.0,0.0001479,2]
[355212219,1741015833248,-500.0,0.0001479,2]
[355212220,1741015833258,-947.3,0.0001479,2]
[355212221,1741015833268,-500.0,0.0001479,2]
[355212222,1741015833279,-695.51,0.0001479,2]
[355212223,1741015833288,-500.0,0.0001479,2]
[355212224,1741015833298,-1058.66,0.0001479,2]
[355212225,1741015833308,-530.52,0.0001479,2]
[355212226,1741015833318,-500.0,0.0001479,2]
[355212228,1741015833327,-503.85,0.0001479,2]
[355212230,1741015833338,-1016.04,0.0001479,2]
[355212232,1741015833347,-500.0,0.0001479,2]
[355212234,1741015833359,-500.0,0.0001479,2]
[355212236,1741015833370,-500.0,0.0001479,2]
[355212238,1741015833381,-500.0,0.0001479,2]
[355212240,1741015833392,-536.81,0.0001479,2]
[355212242,1741015833403,-500.0,0.0001479,2]
[355212244,1741015833414,-500.0,0.0001479,2]
[355212246,1741015833424,-755.13,0.0001479,2]
[355212248,1741015833435,-641.15,0.0001479,2]
[355212250,1741015833446,-500.0,0.0001479,2]
[355212252,1741015833461,-595.98,0.0001479,2]
[355212254,1741015833471,-2191.050475,0.0001479,2]
[355212256,1741015833482,-500.0,0.0001479,2]
[355212258,1741015833492,-500.0,0.0001479,2]
[355212260,1741015833503,-1991.18,0.0001479,2]
[355212262,1741015833513,-153.287909,0.0001479,2]
[355212264,1741015833524,-1243.57,0.0001479,2]
[355212266,1741015833534,-150.369306,0.0001479,2]
[355212268,1741015833546,-1149.02,0.0001479,2]
[355212270,1741015833560,-500.0,0.0001479,2]
[355212271,1741015833570,-500.0,0.0001479,2]
[355212273,1741015833580,-500.0,0.0001479,2]
[355212275,1741015833591,-500.0,0.0001479,2]
[355212276,1741015833601,-1685.85821,0.0001479,2]
[355212277,1741015833611,-500.0,0.0001479,2]
[355212278,1741015833621,-500.0,0.0001479,2]
[355212279,1741015833634,-500.0,0.0001479,2]
[355212280,1741015833645,-500.0,0.0001479,2]
[355212281,1741015833655,-513.06,0.0001479,2]
[355212282,1741015833665,-500.0,0.0001479,2]
[355212283,1741015833675,-500.0,0.0001479,2]
[355212284,1741015833685,-500.0,0.0001479,2]
[355212285,1741015833695,-500.0,0.0001479,2]
[355212286,1741015833709,-506.67,0.0001479,2]
[355212287,1741015833719,-554.53,0.0001479,2]
[355212288,1741015833730,-607.24,0.0001479,2]
[355212289,1741015833741,-500.0,0.0001479,2]
[355212290,1741015833751,-940.24,0.0001479,2]
[355212291,1741015833761,-502.61028675,0.0001479,2]
[355212292,1741015833771,-500.0,0.0001479,2]
[355212293,1741015833781,-500.0,0.0001479,2]
[355212294,1741015833791,-503.01049295,0.0001479,2]
[355212295,1741015833801,-500.0,0.0001479,2]
[355212296,1741015833812,-507.12574089,0.0001479,2]
[355212297,1741015833827,-1080.88,0.0001479,2]
[355212298,1741015833838,-500.0,0.0001479,2]
[355212299,1741015833848,-500.0,0.0001479,2]
[355212300,1741015833859,-597.57,0.0001479,2]
[355212301,1741015833870,-1158.45,0.0001479,2]
[355212302,1741015833882,-512.48721727,0.0001479,2]
[355212303,1741015833903,-504.71665632,0.0001479,2]
[355212304,1741015833924,-500.0,0.0001479,2]
[355212305,1741015833936,-1051.11,0.0001479,2]
[355212306,1741015833947,-1080.8,0.0001479,2]
[355212307,1741015833961,-546.16,0.0001479,2]
[355212308,1741015834079,-500.0,0.0001479,2]
[355212309,1741015834091,-500.0,0.0001479,2]
[355212310,1741015834100,-549.23,0.0001479,2]
[355212311,1741015834111,-829.5,0.0001479,2]
[355212312,1741015834122,-1014.57,0.0001479,2]
[355212313,1741015834133,-500.0,0.0001479,2]
[355212314,1741015834144,-500.0,0.0001479,2]
[355212315,1741015834155,-500.0,0.0001479,2]
[355212316,1741015834165,-1367.57,0.0001479,2]
[355212317,1741015834175,-1540.05,0.0001479,2]
[355212318,1741015834186,-1244.48,0.0001479,2]
[355212319,1741015834196,-1000.75,0.0001479,2]
[355212320,1741015834209,-500.0,0.0001479,2]
[355212321,1741015834220,-351.63588622,0.0001479,2]
[355212322,1741015834232,-500.0,0.0001479,2]
[355212323,1741015834242,-852.38,0.0001479,2]
[355212324,1741015834252,-11350.51,0.0001479,2]
[355212325,1741015834263,-794.79,0.0001479,2]
[355212326,1741015834274,-500.0,0.0001479,2]
[355212327,1741015834284,-500.0,0.0001479,2]
[355212328,1741015834295,-500.0,0.0001479,2]
[355212329,1741015834304,-1133.96,0.0001479,2]
[355212330,1741015834315,-500.0,0.0001479,2]
[355212331,1741015834324,-536.36,0.0001479,2]
[355212332,1741015834335,-2676.33,0.0001479,2]
[355212333,1741015834345,-2832.27,0.0001479,2]
[355212334,1741015834356,-500.0,0.0001479,2]
[355212335,1741015834366,-660.44,0.0001479,2]
[355212336,1741015834376,-1652.54,0.0001479,2]
[355212337,1741015834386,-1433.49,0.0001479,2]
[355212338,1741015834396,-500.0,0.0001479,2]
[355212339,1741015834406,-1103.51,0.0001479,2]
[355212340,1741015834416,-4109.62,0.0001479,2]
[355212341,1741015834426,-1380.07,0.0001479,2]
[355212342,1741015834437,-2015.2,0.0001479,2]
[355212343,1741015834447,-913.28,0.0001479,2]
[355212344,1741015834460,-5231.41,0.0001479,2]
[355212345,1741015834471,-386.85537755,0.0001479,2]
[355212346,1741015834480,-500.0,0.0001479,2]
[355212347,1741015834491,-1907.05,0.0001479,2]
[355212348,1741015834502,-2406.7,0.0001479,2]
[355212349,1741015834511,-500.0,0.0001479,2]
[355212350,1741015834522,-803.94,0.0001479,2]
[355212351,1741015834543,-1838.91,0.0001479,2]
[355212352,1741015834564,-500.0,0.0001479,2]
[355212353,1741015834584,-6009.34,0.0001479,2]
[355212354,1741015834596,-2372.76,0.0001479,2]
[355212355,1741015834607,-505.00062116,0.0001479,2]
[355212356,1741015834618,-1683.17,0.0001479,2]
[355212357,1741015834629,-501.88012899,0.0001479,2]
[355212358,1741015834642,-500.0,0.0001479,2]
[355212359,1741015834654,-910.32,0.0001479,2]
[355212360,1741015834665,-7668.36,0.0001479,2]
[355212361,1741015834676,-500.0,0.0001479,2]
[355212362,1741015834687,-7136.51,0.0001479,2]
[355212363,1741015834698,-4823.36,0.0001479,2]
[355212364,1741015834711,-1145.82,0.0001479,2]
[355212365,1741015834722,-1114.52,0.0001479,2]
[355212366,1741015834733,-1847.91,0.0001479,2]
[355212367,1741015834743,-1606.97,0.0001479,2]
[355212368,1741015834755,-5866.29,0.0001479,2]
[355212369,1741015834766,-2256.5,0.0001479,2]
[355212370,1741015834776,-500.0,0.0001479,2]
[355212371,1741015834788,-512.18085431,0.0001479,2]
[355212372,1741015834800,-7028.37,0.0001479,2]
[355212373,1741015834811,-1562.54,0.0001479,2]
[355212374,1741015834820,-1067.65,0.0001479,2]
[355212375,1741015834831,-500.0,0.0001479,2]
[355212376,1741015834843,-1176.36,0.0001479,2]
[355212377,1741015834854,-1138.88,0.0001479,2]
[355212378,1741015834865,-500.0,0.0001479,2]
[355212379,1741015834877,-1623.79,0.0001479,2]
[355212380,1741015834887,-589.66581088,0.0001479,2]
[355212381,1741015834897,-2463.07,0.0001479,2]
[355212382,1741015834906,-1731.51,0.0001479,2]
[355212383,1741015834916,-918.0,0.0001479,2]
[355212384,1741015834926,-1265.46,0.0001479,2]